[Event "Titled Tuesday Blitz December 20 Early 2022"]
[White "VincentKeymer"]
[Black "Zhigalko_Sergei"]
[WhiteElo "2980"]
[BlackElo "2876"]
[Result "1/2-1/2"]
[Round "08"]
[TimeControl "180+2"]
[Date "2022.12.20"]
[WhiteClock "0:00:03"]
[BlackClock "0:00:04"]

1. Nf3 {[%clk 0:03:00]}  Nf6 {[%clk 0:02:58]} 2. c4 {[%clk 0:03:00]}  e6 {[%clk 0:02:57]} 3. Nc3 {[%clk 0:03:00]}  Bb4 {[%clk 0:02:57]} 4. Qc2 {[%clk 0:02:58]}  O-O {[%clk 0:02:57]} 5. a3 {[%clk 0:02:58]}  Bxc3 {[%clk 0:02:57]} 6. Qxc3 {[%clk 0:02:59]}  d6 {[%clk 0:02:57]} 7. b4 {[%clk 0:02:59]}  e5 {[%clk 0:02:57]} 8. Bb2 {[%clk 0:02:59]}  Re8 {[%clk 0:02:53]} 9. e3 {[%clk 0:02:58]}  b6 {[%clk 0:02:50]} 10. Be2 {[%clk 0:02:56]}  c5 {[%clk 0:02:48]} 11. d3 {[%clk 0:02:50]}  Nc6 {[%clk 0:02:42]} 12. h3 {[%clk 0:02:44]}  h6 {[%clk 0:02:38]} 13. O-O {[%clk 0:02:44]}  Bb7 {[%clk 0:02:34]} 14. Rab1 {[%clk 0:02:41]}  Rc8 {[%clk 0:02:31]} 15. Ba1 {[%clk 0:02:36]}  Qd7 {[%clk 0:02:26]} 16. Rfd1 {[%clk 0:02:27]}  Qc7 {[%clk 0:02:26]} 17. Qb2 {[%clk 0:02:23]}  Rcd8 {[%clk 0:02:22]} 18. Qa2 {[%clk 0:02:16]}  Qc8 {[%clk 0:02:19]} 19. Qb3 {[%clk 0:02:09]}  Qc7 {[%clk 0:02:19]} 20. Nd2 {[%clk 0:02:09]}  Ne7 {[%clk 0:02:16]} 21. bxc5 {[%clk 0:02:02]}  dxc5 {[%clk 0:02:12]} 22. a4 {[%clk 0:02:02]}  Rb8 {[%clk 0:01:32]} 23. a5 {[%clk 0:01:46]}  Bc6 {[%clk 0:01:32]} 24. axb6 {[%clk 0:01:42]}  axb6 {[%clk 0:01:32]} 25. Bb2 {[%clk 0:01:39]}  Ng6 {[%clk 0:01:31]} 26. Nf3 {[%clk 0:01:22]}  e4 {[%clk 0:01:23]} 27. dxe4 {[%clk 0:01:13]}  Nxe4 {[%clk 0:01:24]} 28. Bf1 {[%clk 0:01:06]}  Qc8 {[%clk 0:01:04]} 29. Nd2 {[%clk 0:00:57]}  Qf5 {[%clk 0:00:49]} 30. Nxe4 {[%clk 0:00:56]}  Bxe4 {[%clk 0:00:50]} 31. Qc3 {[%clk 0:00:41]}  f6 {[%clk 0:00:48]} 32. Ra1 {[%clk 0:00:33]}  Nh4 {[%clk 0:00:47]} 33. Ra7 {[%clk 0:00:19]}  Bxg2 {[%clk 0:00:14]} 34. Rdd7 {[%clk 0:00:15]}  Bb7 {[%clk 0:00:14]} 35. Raxb7 {[%clk 0:00:10]}  Rxb7 {[%clk 0:00:15]} 36. Rxb7 {[%clk 0:00:10]}  Qg6+ {[%clk 0:00:15]} 37. Kh1 {[%clk 0:00:08]}  Qe4+ {[%clk 0:00:16]} 38. Kh2 {[%clk 0:00:09]}  Qxb7 {[%clk 0:00:15]} 39. Qd3 {[%clk 0:00:07]}  Nf3+ {[%clk 0:00:14]} 40. Kg3 {[%clk 0:00:07]}  Ng5 {[%clk 0:00:10]} 41. Qf5 {[%clk 0:00:04]}  Ne4+ {[%clk 0:00:06]} 42. Kh2 {[%clk 0:00:05]}  Qc7+ {[%clk 0:00:06]} 43. Kg1 {[%clk 0:00:05]}  Nd6 {[%clk 0:00:03]} 44. Qf4 {[%clk 0:00:03]}  Rc8 {[%clk 0:00:02]} 45. Bd3 {[%clk 0:00:03]}  Nf7 {[%clk 0:00:02]} 46. Qg4 {[%clk 0:00:04]}  Ne5 {[%clk 0:00:01]} 47. Bxe5 {[%clk 0:00:04]}  fxe5 {[%clk 0:00:02]} 48. Be4 {[%clk 0:00:04]}  Rd8 {[%clk 0:00:02]} 49. Bd5+ {[%clk 0:00:04]}  Kh8 {[%clk 0:00:02]} 50. Be4 {[%clk 0:00:05]}  Qd7 {[%clk 0:00:03]} 51. Qg6 {[%clk 0:00:05]}  Kg8 {[%clk 0:00:03]} 52. Bd5+ {[%clk 0:00:05]}  Kf8 {[%clk 0:00:03]} 53. Qxb6 {[%clk 0:00:05]}  Qe7 {[%clk 0:00:03]} 54. Qg6 {[%clk 0:00:05]}  Rd6 {[%clk 0:00:03]} 55. Qf5+ {[%clk 0:00:05]}  Ke8 {[%clk 0:00:03]} 56. Qc8+ {[%clk 0:00:05]}  Qd8 {[%clk 0:00:03]} 57. Qxc5 {[%clk 0:00:04]}  Qd7 {[%clk 0:00:01]} 58. Qb4 {[%clk 0:00:03]}  Ke7 {[%clk 0:00:01]} 59. Kg2 {[%clk 0:00:03]}  Qf5 {[%clk 0:00:01]} 60. Qb7+ {[%clk 0:00:03]}  Rd7 {[%clk 0:00:01]} 61. Qc6 {[%clk 0:00:03]}  Qg5+ {[%clk 0:00:01]} 62. Kf1 {[%clk 0:00:03]}  Qf5 {[%clk 0:00:02]} 63. Kg2 {[%clk 0:00:02]}  Qg5+ {[%clk 0:00:02]} 64. Kf1 {[%clk 0:00:02]}  Qf6 {[%clk 0:00:03]} 65. Qc5+ {[%clk 0:00:02]}  Qd6 {[%clk 0:00:03]} 66. Qa5 {[%clk 0:00:02]}  Qg6 {[%clk 0:00:03]} 67. Qb4+ {[%clk 0:00:02]}  Qd6 {[%clk 0:00:03]} 68. Qa4 {[%clk 0:00:02]}  Rc7 {[%clk 0:00:03]} 69. Qa2 {[%clk 0:00:01]}  Qd7 {[%clk 0:00:03]} 70. Qe2 {[%clk 0:00:01]}  Qxh3+ {[%clk 0:00:03]} 71. Ke1 {[%clk 0:00:02]}  Qf5 {[%clk 0:00:03]} 72. Kf1 {[%clk 0:00:02]}  Qb1+ {[%clk 0:00:03]} 73. Kg2 {[%clk 0:00:03]}  Qg6+ {[%clk 0:00:04]} 74. Kf1 {[%clk 0:00:03]}  Ra7 {[%clk 0:00:04]} 75. Qb2 {[%clk 0:00:03]}  Qd6 {[%clk 0:00:04]} 76. Kg2 {[%clk 0:00:03]}  Rc7 {[%clk 0:00:04]} 77. Qb5 {[%clk 0:00:03]}  Qd7 {[%clk 0:00:04]} 78. Qb4+ {[%clk 0:00:03]}  Qd6 {[%clk 0:00:05]} 79. Qb1 {[%clk 0:00:03]}  h5 {[%clk 0:00:04]} 80. Kh2 {[%clk 0:00:03]}  Qf6 {[%clk 0:00:04]} 81. Kg2 {[%clk 0:00:03]}  Qg5+ {[%clk 0:00:04]} 82. Kf1 {[%clk 0:00:03]}  Qg4 {[%clk 0:00:03]} 83. Qb8 {[%clk 0:00:03]}  Qh3+ {[%clk 0:00:02]} 84. Ke2 {[%clk 0:00:03]}  Qd7 {[%clk 0:00:03]} 85. Qb4+ {[%clk 0:00:03]}  Qd6 {[%clk 0:00:04]} 86. Qb8 {[%clk 0:00:03]}  h4 {[%clk 0:00:04]} 87. Qg8 {[%clk 0:00:02]}  Qf6 {[%clk 0:00:04]} 88. Qb8 {[%clk 0:00:02]}  Qd6 {[%clk 0:00:04]} 89. Qg8 {[%clk 0:00:02]}  Qg6 {[%clk 0:00:02]} 90. Qb8 {[%clk 0:00:02]}  Qg4+ {[%clk 0:00:02]} 91. Kd2 {[%clk 0:00:02]}  Qc8 {[%clk 0:00:03]} 92. Qb4+ {[%clk 0:00:02]}  Rc5 {[%clk 0:00:03]} 93. Qb6 {[%clk 0:00:02]}  h3 {[%clk 0:00:03]} 94. Qg6 {[%clk 0:00:01]}  Rxd5+ {[%clk 0:00:02]} 95. cxd5 {[%clk 0:00:01]}  Qh8 {[%clk 0:00:02]} 96. Qe6+ {[%clk 0:00:01]}  Kd8 {[%clk 0:00:03]} 97. Qd6+ {[%clk 0:00:01]}  Kc8 {[%clk 0:00:02]} 98. Qc6+ {[%clk 0:00:02]}  Kb8 {[%clk 0:00:03]} 99. Qb6+ {[%clk 0:00:02]}  Ka8 {[%clk 0:00:03]} 100. Qa6+ {[%clk 0:00:02]}  Kb8 {[%clk 0:00:03]} 101. Qb6+ {[%clk 0:00:03]}  Ka8 {[%clk 0:00:03]} 102. Qa6+ {[%clk 0:00:03]}  Kb8 {[%clk 0:00:04]} 103. Qb6+ {[%clk 0:00:03]} 1/2-1/2


[Site "https://www.chess.com"]

[Event "Titled Tuesday Blitz December 20 Early 2022"]
[White "Vsevolod_Ovchinnikov"]
[Black "romulocardoso"]
[WhiteElo "2557"]
[BlackElo "2390"]
[Result "1-0"]
[Round "08"]
[TimeControl "180+2"]
[Date "2022.12.20"]
[WhiteClock "0:00:12"]
[BlackClock "0:00:16"]

1. d4 {[%clk 0:02:56]}  Nf6 {[%clk 0:03:00]} 2. c4 {[%clk 0:02:57]}  e6 {[%clk 0:02:59]} 3. g3 {[%clk 0:02:57]}  Bb4+ {[%clk 0:03:00]} 4. Bd2 {[%clk 0:02:57]}  Qe7 {[%clk 0:03:00]} 5. Bg2 {[%clk 0:02:58]}  O-O {[%clk 0:03:00]} 6. e4 {[%clk 0:02:55]}  Bxd2+ {[%clk 0:02:56]} 7. Qxd2 {[%clk 0:02:55]}  d5 {[%clk 0:02:57]} 8. e5 {[%clk 0:02:44]}  Ne4 {[%clk 0:02:57]} 9. Bxe4 {[%clk 0:02:44]}  dxe4 {[%clk 0:02:58]} 10. Nc3 {[%clk 0:02:45]}  Qb4 {[%clk 0:02:49]} 11. b3 {[%clk 0:02:40]}  Rd8 {[%clk 0:02:40]} 12. Nxe4 {[%clk 0:02:04]}  Qxd2+ {[%clk 0:02:36]} 13. Kxd2 {[%clk 0:02:05]}  Rxd4+ {[%clk 0:02:36]} 14. Ke3 {[%clk 0:02:06]}  c5 {[%clk 0:02:37]} 15. Nxc5 {[%clk 0:01:59]}  Rd8 {[%clk 0:02:37]} 16. Ne2 {[%clk 0:01:50]}  b6 {[%clk 0:02:37]} 17. Ne4 {[%clk 0:01:50]}  Bb7 {[%clk 0:02:37]} 18. Rhd1 {[%clk 0:01:28]}  Nd7 {[%clk 0:02:37]} 19. f4 {[%clk 0:01:23]}  f6 {[%clk 0:02:24]} 20. exf6 {[%clk 0:01:18]}  Bxe4 {[%clk 0:02:21]} 21. Kxe4 {[%clk 0:01:17]}  Nxf6+ {[%clk 0:02:21]} 22. Kf3 {[%clk 0:01:17]}  Re8 {[%clk 0:02:09]} 23. h3 {[%clk 0:01:04]}  e5 {[%clk 0:02:07]} 24. f5 {[%clk 0:01:04]}  Rad8 {[%clk 0:01:45]} 25. g4 {[%clk 0:00:53]}  e4+ {[%clk 0:01:44]} 26. Ke3 {[%clk 0:00:49]}  b5 {[%clk 0:00:59]} 27. cxb5 {[%clk 0:00:25]}  Nd5+ {[%clk 0:00:57]} 28. Kf2 {[%clk 0:00:25]}  Nb4 {[%clk 0:00:47]} 29. Rxd8 {[%clk 0:00:20]}  Rxd8 {[%clk 0:00:47]} 30. a3 {[%clk 0:00:16]}  Nc2 {[%clk 0:00:40]} 31. Rc1 {[%clk 0:00:09]}  Nxa3 {[%clk 0:00:26]} 32. Ke3 {[%clk 0:00:03]}  Rd3+ {[%clk 0:00:21]} 33. Kxe4 {[%clk 0:00:04]}  Rxb3 {[%clk 0:00:21]} 34. Rc8+ {[%clk 0:00:04]}  Kf7 {[%clk 0:00:21]} 35. Rc7+ {[%clk 0:00:05]}  Kf6 {[%clk 0:00:22]} 36. Rc6+ {[%clk 0:00:04]}  Kg5 {[%clk 0:00:21]} 37. Nd4 {[%clk 0:00:03]}  Rb4 {[%clk 0:00:20]} 38. Ke5 {[%clk 0:00:02]}  Nxb5 {[%clk 0:00:19]} 39. Ne6+ {[%clk 0:00:03]}  Kh4 {[%clk 0:00:19]} 40. Nxg7 {[%clk 0:00:01]}  Nd4 {[%clk 0:00:19]} 41. Rd6 {[%clk 0:00:01]}  Nf3+ {[%clk 0:00:19]} 42. Kf6 {[%clk 0:00:02]}  a5 {[%clk 0:00:18]} 43. Ne6 {[%clk 0:00:02]}  a4 {[%clk 0:00:18]} 44. Ra6 {[%clk 0:00:02]}  Nd2 {[%clk 0:00:18]} 45. g5 {[%clk 0:00:03]}  Nc4 {[%clk 0:00:18]} 46. Kg7 {[%clk 0:00:02]}  a3 {[%clk 0:00:17]} 47. f6 {[%clk 0:00:03]}  Ne5 {[%clk 0:00:15]} 48. f7 {[%clk 0:00:03]}  Nxf7 {[%clk 0:00:15]} 49. Kxf7 {[%clk 0:00:04]}  Kxh3 {[%clk 0:00:14]} 50. Rxa3+ {[%clk 0:00:04]}  Kh4 {[%clk 0:00:14]} 51. Kf6 {[%clk 0:00:04]}  Rb6 {[%clk 0:00:13]} 52. Ra1 {[%clk 0:00:04]}  Kg4 {[%clk 0:00:13]} 53. Rh1 {[%clk 0:00:05]}  Rb7 {[%clk 0:00:14]} 54. Rh6 {[%clk 0:00:04]}  Ra7 {[%clk 0:00:13]} 55. Rh1 {[%clk 0:00:04]}  Rb7 {[%clk 0:00:13]} 56. Rc1 {[%clk 0:00:05]}  Ra7 {[%clk 0:00:13]} 57. Rc7 {[%clk 0:00:05]}  Rxc7 {[%clk 0:00:11]} 58. Nxc7 {[%clk 0:00:06]}  Kh5 {[%clk 0:00:12]} 59. Ne6 {[%clk 0:00:07]}  Kg4 {[%clk 0:00:12]} 60. Nf8 {[%clk 0:00:06]}  Kh5 {[%clk 0:00:10]} 61. Nxh7 {[%clk 0:00:06]}  Kg4 {[%clk 0:00:11]} 62. Nf8 {[%clk 0:00:07]}  Kf4 {[%clk 0:00:12]} 63. g6 {[%clk 0:00:08]}  Ke4 {[%clk 0:00:13]} 64. g7 {[%clk 0:00:09]}  Kd3 {[%clk 0:00:14]} 65. g8=Q {[%clk 0:00:10]}  Kc2 {[%clk 0:00:14]} 66. Qd5 {[%clk 0:00:10]}  Kb2 {[%clk 0:00:15]} 67. Ke5 {[%clk 0:00:11]}  Kb1 {[%clk 0:00:16]} 68. Qg2 {[%clk 0:00:11]}  Kc1 {[%clk 0:00:15]} 69. Kd4 {[%clk 0:00:11]}  Kb1 {[%clk 0:00:16]} 70. Kc3 {[%clk 0:00:12]} 1-0


[Site "https://www.chess.com"]

[Event "Titled Tuesday Blitz December 20 Early 2022"]
[White "WhiteKnight2612"]
[Black "googlegoom"]
[WhiteElo "2753"]
[BlackElo "2581"]
[Result "0-1"]
[Round "08"]
[TimeControl "180+2"]
[Date "2022.12.20"]
[WhiteClock "0:01:12"]
[BlackClock "0:01:04"]

1. e4 {[%clk 0:03:00]}  c5 {[%clk 0:02:59]} 2. d4 {[%clk 0:02:55]}  cxd4 {[%clk 0:02:53]} 3. c3 {[%clk 0:02:55]}  Nf6 {[%clk 0:02:50]} 4. e5 {[%clk 0:02:55]}  Nd5 {[%clk 0:02:49]} 5. cxd4 {[%clk 0:02:55]}  d6 {[%clk 0:02:48]} 6. exd6 {[%clk 0:02:56]}  Qxd6 {[%clk 0:02:48]} 7. Nc3 {[%clk 0:02:57]}  Nc6 {[%clk 0:02:46]} 8. Nf3 {[%clk 0:02:57]}  Bg4 {[%clk 0:02:45]} 9. Be2 {[%clk 0:02:52]}  e6 {[%clk 0:02:45]} 10. O-O {[%clk 0:02:52]}  Be7 {[%clk 0:02:45]} 11. h3 {[%clk 0:02:53]}  Bh5 {[%clk 0:02:44]} 12. Be3 {[%clk 0:02:42]}  O-O {[%clk 0:02:40]} 13. Rc1 {[%clk 0:02:43]}  Rac8 {[%clk 0:02:32]} 14. Nd2 {[%clk 0:02:32]}  Bxe2 {[%clk 0:02:19]} 15. Qxe2 {[%clk 0:02:33]}  Rfd8 {[%clk 0:02:08]} 16. Nde4 {[%clk 0:02:27]}  Qb8 {[%clk 0:02:03]} 17. Qh5 {[%clk 0:02:19]}  Nf6 {[%clk 0:01:57]} 18. Nxf6+ {[%clk 0:02:18]}  Bxf6 {[%clk 0:01:57]} 19. d5 {[%clk 0:02:18]}  Bxc3 {[%clk 0:01:39]} 20. dxc6 {[%clk 0:02:17]}  Bxb2 {[%clk 0:01:23]} 21. Rb1 {[%clk 0:02:17]}  Bf6 {[%clk 0:01:17]} 22. Rxb7 {[%clk 0:02:15]}  Qd6 {[%clk 0:01:11]} 23. Qxf7+ {[%clk 0:02:14]}  Kh8 {[%clk 0:01:10]} 24. Rc1 {[%clk 0:01:20]}  Be5 {[%clk 0:01:06]} 25. Bh6 {[%clk 0:01:12]}  Qd1+ {[%clk 0:01:04]} 0-1


[Site "https://www.chess.com"]

[Event "Titled Tuesday Blitz December 20 Early 2022"]
[White "Wild, Achim"]
[Black "guillembaches"]
[WhiteFideId "4658728"]
[WhiteElo "2265"]
[BlackElo "2464"]
[Result "1/2-1/2"]
[Round "08"]
[TimeControl "180+2"]
[Date "2022.12.20"]
[WhiteClock "0:00:39"]
[BlackClock "0:00:15"]

1. a3 {[%clk 0:02:47]}  e5 {[%clk 0:02:57]} 2. e3 {[%clk 0:02:47]}  d5 {[%clk 0:02:55]} 3. d4 {[%clk 0:02:47]}  exd4 {[%clk 0:02:55]} 4. exd4 {[%clk 0:02:47]}  Nf6 {[%clk 0:02:55]} 5. Nf3 {[%clk 0:02:47]}  Bd6 {[%clk 0:02:53]} 6. h3 {[%clk 0:02:46]}  O-O {[%clk 0:02:49]} 7. Bd3 {[%clk 0:02:46]}  Re8+ {[%clk 0:02:47]} 8. Be3 {[%clk 0:02:45]}  Bf4 {[%clk 0:02:41]} 9. Qd2 {[%clk 0:02:43]}  Qe7 {[%clk 0:02:32]} 10. O-O {[%clk 0:02:29]}  Bxe3 {[%clk 0:02:03]} 11. fxe3 {[%clk 0:02:30]}  c5 {[%clk 0:01:47]} 12. Ne5 {[%clk 0:02:07]}  Nc6 {[%clk 0:01:47]} 13. Bb5 {[%clk 0:02:05]}  Bd7 {[%clk 0:01:34]} 14. Nxd7 {[%clk 0:02:01]}  Nxd7 {[%clk 0:01:32]} 15. Bxc6 {[%clk 0:01:59]}  bxc6 {[%clk 0:01:30]} 16. Rf3 {[%clk 0:01:52]}  cxd4 {[%clk 0:01:25]} 17. Qxd4 {[%clk 0:01:51]}  Ne5 {[%clk 0:01:20]} 18. Rf2 {[%clk 0:01:43]}  c5 {[%clk 0:01:12]} 19. Qf4 {[%clk 0:01:27]}  Ng6 {[%clk 0:00:47]} 20. Qf3 {[%clk 0:01:21]}  Qxe3 {[%clk 0:00:46]} 21. Qxe3 {[%clk 0:01:13]}  Rxe3 {[%clk 0:00:44]} 22. Nc3 {[%clk 0:01:13]}  Rd8 {[%clk 0:00:39]} 23. Rd1 {[%clk 0:01:10]}  d4 {[%clk 0:00:38]} 24. Na4 {[%clk 0:01:05]}  Re5 {[%clk 0:00:35]} 25. b3 {[%clk 0:00:59]}  f6 {[%clk 0:00:31]} 26. Nb2 {[%clk 0:00:58]}  Red5 {[%clk 0:00:29]} 27. b4 {[%clk 0:00:49]}  Ne5 {[%clk 0:00:24]} 28. bxc5 {[%clk 0:00:48]}  Rxc5 {[%clk 0:00:24]} 29. Nd3 {[%clk 0:00:49]}  Nxd3 {[%clk 0:00:22]} 30. Rxd3 {[%clk 0:00:49]}  Rdc8 {[%clk 0:00:19]} 31. Rxd4 {[%clk 0:00:47]}  Rxc2 {[%clk 0:00:19]} 32. Rxc2 {[%clk 0:00:46]}  Rxc2 {[%clk 0:00:19]} 33. Rd8+ {[%clk 0:00:46]}  Kf7 {[%clk 0:00:19]} 34. Rd7+ {[%clk 0:00:47]}  Kg6 {[%clk 0:00:19]} 35. Rxa7 {[%clk 0:00:48]}  h5 {[%clk 0:00:19]} 36. Kh2 {[%clk 0:00:48]}  Ra2 {[%clk 0:00:19]} 37. Ra5 {[%clk 0:00:48]}  h4 {[%clk 0:00:17]} 38. Kg1 {[%clk 0:00:48]}  Kf7 {[%clk 0:00:16]} 39. Ra4 {[%clk 0:00:47]}  g5 {[%clk 0:00:16]} 40. Kh2 {[%clk 0:00:47]}  Kg6 {[%clk 0:00:16]} 41. Kg1 {[%clk 0:00:47]}  f5 {[%clk 0:00:16]} 42. Ra6+ {[%clk 0:00:47]}  Kh5 {[%clk 0:00:16]} 43. Ra5 {[%clk 0:00:47]}  Kg6 {[%clk 0:00:16]} 44. Ra6+ {[%clk 0:00:47]}  Kh5 {[%clk 0:00:16]} 45. Kh2 {[%clk 0:00:45]}  g4 {[%clk 0:00:15]} 46. hxg4+ {[%clk 0:00:42]}  fxg4 {[%clk 0:00:15]} 47. Ra5+ {[%clk 0:00:42]}  Kg6 {[%clk 0:00:15]} 48. Ra4 {[%clk 0:00:38]}  Kg5 {[%clk 0:00:15]} 49. Ra5+ {[%clk 0:00:38]}  Kg6 {[%clk 0:00:15]} 50. Ra6+ {[%clk 0:00:39]}  Kg5 {[%clk 0:00:15]} 51. Ra5+ {[%clk 0:00:39]}  Kg6 {[%clk 0:00:15]} 1/2-1/2


[Site "https://www.chess.com"]

[Event "Titled Tuesday Blitz December 20 Early 2022"]
[White "Witek, Tomasz"]
[Black "pedromartinez91"]
[WhiteFideId "1130056"]
[WhiteElo "2000"]
[BlackElo "2488"]
[Result "1-0"]
[Round "08"]
[TimeControl "180+2"]
[Date "2022.12.20"]
[WhiteClock "0:00:48"]
[BlackClock "0:00:01"]

1. d4 {[%clk 0:02:58]}  Nf6 {[%clk 0:02:59]} 2. Nf3 {[%clk 0:02:58]}  c5 {[%clk 0:02:58]} 3. e3 {[%clk 0:02:56]}  d5 {[%clk 0:02:55]} 4. c4 {[%clk 0:02:55]}  cxd4 {[%clk 0:02:54]} 5. exd4 {[%clk 0:02:55]}  Nc6 {[%clk 0:02:54]} 6. c5 {[%clk 0:02:50]}  Bg4 {[%clk 0:02:52]} 7. Bb5 {[%clk 0:02:49]}  e6 {[%clk 0:02:45]} 8. Qa4 {[%clk 0:02:44]}  Bxf3 {[%clk 0:01:58]} 9. Bxc6+ {[%clk 0:02:42]}  bxc6 {[%clk 0:01:58]} 10. Qxc6+ {[%clk 0:02:40]}  Nd7 {[%clk 0:01:59]} 11. gxf3 {[%clk 0:02:40]}  Be7 {[%clk 0:01:54]} 12. Nc3 {[%clk 0:02:25]}  O-O {[%clk 0:01:50]} 13. O-O {[%clk 0:02:16]}  Bg5 {[%clk 0:01:26]} 14. Be3 {[%clk 0:01:57]}  Bxe3 {[%clk 0:01:19]} 15. fxe3 {[%clk 0:01:57]}  Qg5+ {[%clk 0:01:11]} 16. Kh1 {[%clk 0:01:57]}  Nf6 {[%clk 0:01:07]} 17. Rae1 {[%clk 0:01:52]}  Rab8 {[%clk 0:01:02]} 18. Re2 {[%clk 0:01:43]}  Rfc8 {[%clk 0:00:58]} 19. Qd6 {[%clk 0:01:43]}  Qf5 {[%clk 0:00:53]} 20. Rg2 {[%clk 0:01:34]}  Qd3 {[%clk 0:00:45]} 21. Re1 {[%clk 0:01:26]}  g6 {[%clk 0:00:29]} 22. Qe5 {[%clk 0:01:25]}  Nd7 {[%clk 0:00:25]} 23. Qd6 {[%clk 0:01:10]}  Nf6 {[%clk 0:00:21]} 24. h3 {[%clk 0:01:09]}  a5 {[%clk 0:00:18]} 25. Kh2 {[%clk 0:01:02]}  Nh5 {[%clk 0:00:19]} 26. Qe5 {[%clk 0:01:00]}  Ng7 {[%clk 0:00:19]} 27. e4 {[%clk 0:00:58]}  Rb4 {[%clk 0:00:12]} 28. exd5 {[%clk 0:00:57]}  Rxd4 {[%clk 0:00:12]} 29. Rd1 {[%clk 0:00:51]}  Qf5 {[%clk 0:00:04]} 30. Qxd4 {[%clk 0:00:49]}  e5 {[%clk 0:00:01]} 31. Qg4 {[%clk 0:00:48]} 1-0


[Site "https://www.chess.com"]

[Event "Titled Tuesday Blitz December 20 Early 2022"]
[White "Yurasova_Daria"]
[Black "Malich, Burkhard, Dr."]
[BlackFideId "4611330"]
[WhiteElo "2502"]
[BlackElo "2323"]
[Result "1/2-1/2"]
[Round "08"]
[TimeControl "180+2"]
[Date "2022.12.20"]
[WhiteClock "0:00:49"]
[BlackClock "0:00:18"]

1. d4 {[%clk 0:03:00]}  Nf6 {[%clk 0:02:59]} 2. Bg5 {[%clk 0:03:00]}  d5 {[%clk 0:02:58]} 3. Bxf6 {[%clk 0:02:59]}  gxf6 {[%clk 0:02:58]} 4. e3 {[%clk 0:03:00]}  c5 {[%clk 0:02:58]} 5. dxc5 {[%clk 0:03:00]}  e6 {[%clk 0:02:56]} 6. g3 {[%clk 0:03:00]}  Bxc5 {[%clk 0:02:56]} 7. Bg2 {[%clk 0:03:01]}  Nc6 {[%clk 0:02:56]} 8. Ne2 {[%clk 0:03:00]}  Qb6 {[%clk 0:02:32]} 9. O-O {[%clk 0:02:52]}  Qxb2 {[%clk 0:02:30]} 10. Nbc3 {[%clk 0:02:51]}  Qb4 {[%clk 0:02:01]} 11. Rb1 {[%clk 0:02:36]}  Qc4 {[%clk 0:02:01]} 12. Nb5 {[%clk 0:02:28]}  Ke7 {[%clk 0:02:01]} 13. Nc7 {[%clk 0:02:23]}  Rb8 {[%clk 0:02:01]} 14. Bxd5 {[%clk 0:02:09]}  exd5 {[%clk 0:01:56]} 15. Nxd5+ {[%clk 0:02:09]}  Kf8 {[%clk 0:01:55]} 16. Nxf6 {[%clk 0:02:08]}  Qxa2 {[%clk 0:01:23]} 17. Nd7+ {[%clk 0:02:04]}  Bxd7 {[%clk 0:01:23]} 18. Qxd7 {[%clk 0:02:05]}  Ne5 {[%clk 0:01:06]} 19. Qc7 {[%clk 0:01:57]}  Nf3+ {[%clk 0:00:56]} 20. Kh1 {[%clk 0:01:55]}  Qd5 {[%clk 0:00:57]} 21. Nf4 {[%clk 0:01:45]}  Qd6 {[%clk 0:00:54]} 22. Rxb7 {[%clk 0:01:37]}  Qxc7 {[%clk 0:00:51]} 23. Rxc7 {[%clk 0:01:38]}  Bd6 {[%clk 0:00:45]} 24. Rxa7 {[%clk 0:01:36]}  Bxf4 {[%clk 0:00:45]} 25. exf4 {[%clk 0:01:36]}  Rc8 {[%clk 0:00:45]} 26. Kg2 {[%clk 0:01:34]}  Nd4 {[%clk 0:00:45]} 27. Rd1 {[%clk 0:01:34]}  Nc6 {[%clk 0:00:37]} 28. Rb7 {[%clk 0:01:31]}  Rd8 {[%clk 0:00:37]} 29. Re1 {[%clk 0:01:25]}  Kg7 {[%clk 0:00:36]} 30. Rc7 {[%clk 0:01:19]}  Rc8 {[%clk 0:00:35]} 31. Rb7 {[%clk 0:01:17]}  Rhe8 {[%clk 0:00:30]} 32. Rxe8 {[%clk 0:01:14]}  Rxe8 {[%clk 0:00:31]} 33. Rc7 {[%clk 0:01:13]}  Re6 {[%clk 0:00:31]} 34. c4 {[%clk 0:01:12]}  h5 {[%clk 0:00:28]} 35. c5 {[%clk 0:01:10]}  Kf6 {[%clk 0:00:23]} 36. h3 {[%clk 0:01:09]}  Ne7 {[%clk 0:00:23]} 37. g4 {[%clk 0:01:06]}  hxg4 {[%clk 0:00:20]} 38. hxg4 {[%clk 0:01:07]}  Re4 {[%clk 0:00:21]} 39. Kg3 {[%clk 0:01:01]}  Rc4 {[%clk 0:00:21]} 40. f3 {[%clk 0:00:53]}  Nd5 {[%clk 0:00:17]} 41. Rc6+ {[%clk 0:00:53]}  Ke7 {[%clk 0:00:17]} 42. f5 {[%clk 0:00:50]}  f6 {[%clk 0:00:17]} 43. Re6+ {[%clk 0:00:50]}  Kf7 {[%clk 0:00:16]} 44. c6 {[%clk 0:00:50]}  Ne7 {[%clk 0:00:15]} 45. f4 {[%clk 0:00:46]}  Rxc6 {[%clk 0:00:15]} 46. Rxc6 {[%clk 0:00:46]}  Nxc6 {[%clk 0:00:16]} 47. g5 {[%clk 0:00:46]}  Nd4 {[%clk 0:00:14]} 48. Kg4 {[%clk 0:00:45]}  Kg7 {[%clk 0:00:13]} 49. gxf6+ {[%clk 0:00:44]}  Kxf6 {[%clk 0:00:13]} 50. Kg3 {[%clk 0:00:44]}  Nxf5+ {[%clk 0:00:14]} 51. Kf2 {[%clk 0:00:45]}  Ke6 {[%clk 0:00:14]} 52. Ke2 {[%clk 0:00:45]}  Kd5 {[%clk 0:00:15]} 53. Kf2 {[%clk 0:00:46]}  Ke4 {[%clk 0:00:16]} 54. Ke2 {[%clk 0:00:47]}  Nd4+ {[%clk 0:00:16]} 55. Kf2 {[%clk 0:00:48]}  Kf5 {[%clk 0:00:16]} 56. Kg3 {[%clk 0:00:49]}  Ne6 {[%clk 0:00:17]} 57. Kf3 {[%clk 0:00:49]}  Nxf4 {[%clk 0:00:18]} 1/2-1/2


[Site "https://www.chess.com"]